[Event "3rd FIDE WCCC Rapid G10 2019"]
[Site "Minsk"]
[Date "2019.08.16"]
[Round "2.1"]
[White "Moskalets, Sofiia"]
[Black "Shukhman, Anna"]
[Result "0-1"]
[ECO "B23"]
[WhiteElo "1291"]
[BlackElo "1806"]
[Annotator "NA"]
[PlyCount "118"]
[EventDate "2019.08.16"]
[EventType "swiss"]
[EventCountry "BLR"]
[SourceTitle "playchess.com"]
[Source "ChessBase"]
[SourceQuality "1"]
[TimeControl "600+5"]

1. e4 {[%emt 0:00:00]} c5 {[%emt 0:00:00]} 2. Nc3 {[%emt 0:00:00]} e6 {[%emt 0:00:00]} 3. g3 {[%emt 0:00:01]} Nc6 {[%emt 0:00:04]} 4. Bg2 {[%emt 0:00:03]} g6 {[%emt 0:00:01]} 5. Nge2 {[%emt 0:00:06]} Bg7 {[%emt 0:00:02]} 6. O-O {[%emt 0:00:10]} Nge7 {[%emt 0:00:02]} 7. d3 {[%emt 0:00:10]} O-O {[%emt 0:00:03]} 8. Be3 {[%emt 0:00:34]} Nd4 {[%emt 0:00:02]} 9. f4 {[%emt 0:01:33]} d6 {[%emt 0:00:10]} 10. Bf2 {[%emt 0:01:07]} Bd7 {[%emt 0:00:36]} 11. Nxd4 {[%emt 0:01:07]} cxd4 {[%emt 0:00:02]} 12. Ne2 {[%emt 0:00:04]} Nc6 {[%emt 0:00:24]} 13. g4 {[%emt 0:00:30]} Qb6 {[%emt 0:00:24]} 14. Rb1 {[%emt 0:00:12]} f5 {[%emt 0:00:36]} 15. g5 {[%emt 0:00:44]} e5 {[%emt 0:00:27]} 16. exf5 {[%emt 0:00:59]} Bxf5 {[%emt 0:00:09]} 17. h4 {[%emt 0:00:15]} Bg4 {[%emt 0:00:27]} 18. Bg3 {[%emt 0:01:19]} Rae8 {[%emt 0:00:16]} 19. Bf3 {[%emt 0:00:33]} Bxf3 {[%emt 0:00:12]} 20. Rxf3 {[%emt 0:00:01]} e4 {[%emt 0:00:07]} 21. Rf1 {[%emt 0:00:13]} Qc5 {[%emt 0:00:40]} 22. a3 {[%emt 0:00:29]} Qf5 {[%emt 0:00:16]} 23. Kh2 {[%emt 0:00:27]} exd3 {[%emt 0:00:35]} 24. cxd3 {[%emt 0:00:02]} Re3 {[%emt 0:00:07]} 25. Nc1 {[%emt 0:00:14]} Rfe8 {[%emt 0:00:18]} 26. Qb3+ {[%emt 0:00:21]} Kh8 {[%emt 0:02:44]} 27. Qxb7 {[%emt 0:00:09]} Qg4 {[%emt 0:00:04]} 28. Rg1 {[%emt 0:00:06]} Ne5 {[%emt 0:01:29]} 29. fxe5 {[%emt 0:00:18]} Rxg3 {[%emt 0:00:04]} 30. Rxg3 {[%emt 0:00:03]} Bxe5 {[%emt 0:00:02]} 31. Qg2 {[%emt 0:00:06]} Qxh4+ {[%emt 0:00:03]} 32. Kg1 {[%emt 0:00:02]} Bxg3 {[%emt 0:00:12]} 33. Ne2 {[%emt 0:00:06]} Bh2+ {[%emt 0:01:01]} 34. Qxh2 {[%emt 0:00:14]} Qxh2+ 35. Kxh2 {[%emt 0:00:01]} Rxe2+ {[%emt 0:00:04]} 36. Kg1 {[%emt 0:00:04]} Rd2 {[%emt 0:00:01]} 37. Kf1 {[%emt 0:00:10]} Rxd3 {[%emt 0:00:03]} 38. Re1 {[%emt 0:00:03]} Rf3+ {[%emt 0:00:17]} 39. Kg2 {[%emt 0:00:02]} Rf5 {[%emt 0:00:17]} 40. Rd1 {[%emt 0:00:04]} Rxg5+ {[%emt 0:00:04]} 41. Kf3 {[%emt 0:00:01]} Rb5 {[%emt 0:00:07]} 42. Rd2 {[%emt 0:00:02]} d5 {[%emt 0:00:04]} 43. b4 {[%emt 0:00:07]} Kg7 {[%emt 0:00:09]} 44. Rxd4 {[%emt 0:00:01]} Kf6 {[%emt 0:00:02]} 45. a4 {[%emt 0:00:04]} Rb7 {[%emt 0:00:03]} 46. b5 {[%emt 0:00:01]} Ke5 {[%emt 0:00:02]} 47. Ke3 {[%emt 0:00:03]} Rf7 {[%emt 0:00:04]} 48. Rd1 {[%emt 0:00:04]} Rf4 {[%emt 0:00:13]} 49. Rb1 {[%emt 0:00:13]} d4+ {[%emt 0:00:02]} 50. Ke2 {[%emt 0:00:05]} Ke4 {[%emt 0:00:04]} 51. a5 {[%emt 0:00:12]} d3+ {[%emt 0:00:03]} 52. Kd2 {[%emt 0:00:03]} Rf2+ {[%emt 0:00:02]} 53. Kc3 {[%emt 0:00:01]} d2 {[%emt 0:00:27]} 54. b6 {[%emt 0:00:16]} axb6 {[%emt 0:00:03]} 55. axb6 {[%emt 0:00:02]} Ke3 {[%emt 0:00:11]} 56. b7 {[%emt 0:00:09]} Rf8 {[%emt 0:00:03]} 57. Kc2 {[%emt 0:00:04]} Ke2 {[%emt 0:00:06]} 58. Rd1 {[%emt 0:00:14]} Rd8 {[%emt 0:00:11]} 59. Kc3 {[%emt 0:00:07]} Kxd1 {[%emt 0:00:02]} 0-1

[Event "3rd FIDE WCCC Rapid G10 2019"]
[Site "Minsk"]
[Date "2019.08.16"]
[Round "2.2"]
[White "Basova, Polina"]
[Black "Kamenskaya, Marina"]
[Result "0-1"]
[ECO "D52"]
[WhiteElo "1610"]
[BlackElo "1292"]
[Annotator "NA"]
[PlyCount "80"]
[EventDate "2019.08.16"]
[EventType "swiss"]
[EventCountry "BLR"]
[SourceTitle "playchess.com"]
[Source "ChessBase"]
[SourceQuality "1"]
[TimeControl "600+5"]

1. d4 {[%emt 0:00:00]} d5 {[%emt 0:00:00]} 2. c4 {[%emt 0:00:00]} e6 {[%emt 0:00:00]} 3. Nc3 {[%emt 0:00:00]} Nf6 {[%emt 0:00:01]} 4. Bg5 {[%emt 0:00:01]} Nbd7 {[%emt 0:00:25]} 5. e3 {[%emt 0:00:03]} c6 {[%emt 0:00:09]} 6. Nf3 {[%emt 0:00:04]} Qa5 {[%emt 0:00:57]} 7. Qd2 {[%emt 0:00:23]} Bb4 {[%emt 0:00:10]} 8. cxd5 {[%emt 0:00:37]} Ne4 {[%emt 0:00:36]} 9. Qc2 {[%emt 0:01:12]} Nxc3 {[%emt 0:00:04]} 10. Nd2 {[%emt 0:00:27]} Nxd5 {[%emt 0:00:23]} 11. e4 {[%emt 0:00:14]} N5f6 {[%emt 0:00:32]} 12. Be3 {[%emt 0:00:29]} O-O {[%emt 0:00:24]} 13. Be2 {[%emt 0:00:07]} e5 {[%emt 0:00:06]} 14. O-O {[%emt 0:00:17]} exd4 {[%emt 0:00:05]} 15. Nc4 {[%emt 0:00:33]} Qc5 {[%emt 0:00:30]} 16. a3 {[%emt 0:00:41]} dxe3 {[%emt 0:00:13]} 17. axb4 {[%emt 0:00:05]} exf2+ {[%emt 0:00:08]} 18. Rxf2 {[%emt 0:00:02]} Qxb4 {[%emt 0:00:08]} 19. e5 {[%emt 0:00:07]} Nd5 {[%emt 0:00:14]} 20. Bd3 {[%emt 0:00:24]} h6 {[%emt 0:00:12]} 21. Ra4 {[%emt 0:00:22]} Qe7 {[%emt 0:00:15]} 22. Qe2 {[%emt 0:00:33]} b5 {[%emt 0:00:07]} 23. Ra1 {[%emt 0:00:32]} bxc4 {[%emt 0:00:02]} 24. Bxc4 {[%emt 0:00:04]} Qxe5 {[%emt 0:00:04]} 25. Re1 {[%emt 0:00:17]} Qxe2 {[%emt 0:00:08]} 26. Rfxe2 {[%emt 0:00:07]} N7b6 {[%emt 0:00:03]} 27. Bb3 {[%emt 0:00:22]} Ba6 {[%emt 0:00:05]} 28. Rc2 {[%emt 0:00:13]} Rfe8 {[%emt 0:00:16]} 29. Rxe8+ {[%emt 0:00:13]} Rxe8 {[%emt 0:00:01]} 30. Rxc6 {[%emt 0:00:10]} Re1+ {[%emt 0:00:07]} 31. Kf2 {[%emt 0:00:03]} Re2+ {[%emt 0:00:02]} 32. Kg3 {[%emt 0:00:08]} Re3+ {[%emt 0:00:03]} 33. Kf2 {[%emt 0:00:02]} Rxb3 {[%emt 0:00:01]} 34. Rc2 {[%emt 0:00:11]} Nb4 {[%emt 0:00:05]} 35. Rd2 {[%emt 0:00:08]} Nc4 {[%emt 0:00:04]} 36. Rd8+ {[%emt 0:00:11]} Kh7 {[%emt 0:00:01]} 37. Rd7 {[%emt 0:00:08]} Rxb2+ {[%emt 0:00:02]} 38. Ke1 {[%emt 0:00:04]} Bb5 {[%emt 0:00:14]} 39. Rxa7 {[%emt 0:00:02]} Nd3+ {[%emt 0:00:01]} 40. Kd1 {[%emt 0:00:08]} Ne3# {[%emt 0:00:04]} 0-1

[Event "3rd FIDE WCCC Rapid G10 2019"]
[Site "Minsk"]
[Date "2019.08.16"]
[Round "2.3"]
[White "Konkol, Sandra"]
[Black "Smietanska, Wiktoria"]
[Result "1/2-1/2"]
[ECO "B90"]
[WhiteElo "1257"]
[BlackElo "1594"]
[Annotator "NA"]
[PlyCount "182"]
[EventDate "2019.08.16"]
[EventType "swiss"]
[EventCountry "BLR"]
[SourceTitle "playchess.com"]
[Source "ChessBase"]
[SourceQuality "1"]
[TimeControl "600+5"]

1. e4 {[%emt 0:00:00]} c5 {[%emt 0:00:00]} 2. Nf3 {[%emt 0:00:00]} d6 {[%emt 0:00:00]} 3. d4 {[%emt 0:00:00]} Nf6 {[%emt 0:00:00]} 4. Nc3 {[%emt 0:00:00]} cxd4 {[%emt 0:00:01]} 5. Nxd4 {[%emt 0:00:02]} a6 {[%emt 0:00:01]} 6. Bc4 {[%emt 0:00:08]} e6 {[%emt 0:00:03]} 7. Bg5 {[%emt 0:00:02]} Be7 {[%emt 0:01:17]} 8. O-O {[%emt 0:00:02]} O-O {[%emt 0:00:14]} 9. Re1 {[%emt 0:00:15]} b5 {[%emt 0:00:50]} 10. Bb3 {[%emt 0:00:01]} Qd7 {[%emt 0:01:02]} 11. Qf3 {[%emt 0:00:42]} Bb7 {[%emt 0:00:39]} 12. Rad1 {[%emt 0:00:07]} h6 {[%emt 0:00:58]} 13. Bxf6 {[%emt 0:00:12]} Bxf6 {[%emt 0:00:08]} 14. Qg3 {[%emt 0:00:22]} Rd8 {[%emt 0:01:15]} 15. h3 {[%emt 0:01:00]} Qc7 {[%emt 0:01:19]} 16. Bxe6 {[%emt 0:04:05]} Bxd4 {[%emt 0:00:31]} 17. Bxf7+ {[%emt 0:00:20]} Qxf7 {[%emt 0:00:05]} 18. Rxd4 {[%emt 0:00:05]} Qf6 {[%emt 0:01:18]} 19. Red1 {[%emt 0:00:12]} Nc6 {[%emt 0:00:59]} 20. Rxd6 {[%emt 0:00:21]} Rxd6 {[%emt 0:00:16]} 21. Rxd6 {[%emt 0:00:03]} Qe5 {[%emt 0:00:15]} 22. Qxe5 {[%emt 0:01:08]} Nxe5 {[%emt 0:00:01]} 23. b3 {[%emt 0:00:16]} Rc8 {[%emt 0:00:15]} 24. Nd5 {[%emt 0:00:47]} Bxd5 {[%emt 0:00:09]} 25. exd5 {[%emt 0:00:41]} Rxc2 {[%emt 0:00:08]} 26. Rxa6 {[%emt 0:00:03]} Rd2 {[%emt 0:00:08]} 27. d6 {[%emt 0:00:39]} Nf7 {[%emt 0:00:07]} 28. Ra8+ {[%emt 0:00:18]} Kh7 {[%emt 0:00:02]} 29. Rb8 {[%emt 0:00:06]} Nxd6 {[%emt 0:00:02]} 30. Rd8 {[%emt 0:00:07]} Ne4 {[%emt 0:00:11]} 31. Rxd2 {[%emt 0:00:11]} Nxd2 {[%emt 0:00:01]} 32. a4 {[%emt 0:00:04]} bxa4 {[%emt 0:00:11]} 33. bxa4 {[%emt 0:00:01]} Nc4 {[%emt 0:00:03]} 34. Kf1 {[%emt 0:00:03]} Kg6 {[%emt 0:00:02]} 35. Ke2 {[%emt 0:00:01]} Kf6 {[%emt 0:00:08]} 36. Kf3 {[%emt 0:00:09]} Ke5 {[%emt 0:00:05]} 37. Kg4 {[%emt 0:00:08]} g6 {[%emt 0:00:03]} 38. f4+ {[%emt 0:00:09]} Kf6 {[%emt 0:00:04]} 39. h4 {[%emt 0:00:02]} h5+ {[%emt 0:00:07]} 40. Kf3 {[%emt 0:00:04]} Kf5 {[%emt 0:00:03]} 41. g3 {[%emt 0:00:05]} Na5 {[%emt 0:00:09]} 42. Ke3 {[%emt 0:00:07]} Kg4 {[%emt 0:00:04]} 43. Kf2 {[%emt 0:00:01]} Nc4 {[%emt 0:00:03]} 44. Kg2 {[%emt 0:00:04]} Na5 {[%emt 0:00:10]} 45. Kf2 {[%emt 0:00:01]} Nc6 {[%emt 0:00:08]} 46. Kg2 {[%emt 0:00:01]} Na5 {[%emt 0:00:04]} 47. Kf2 {[%emt 0:00:01]} Kf5 {[%emt 0:00:04]} 48. Ke3 {[%emt 0:00:04]} Nc6 {[%emt 0:00:01]} 49. Kf2 {[%emt 0:00:11]} Ke4 {[%emt 0:00:08]} 50. Ke2 {[%emt 0:00:02]} Nd4+ {[%emt 0:00:03]} 51. Kf2 {[%emt 0:00:01]} Nb3 {[%emt 0:00:09]} 52. Ke2 {[%emt 0:00:02]} Na5 {[%emt 0:00:07]} 53. Kf2 {[%emt 0:00:01]} Kd3 {[%emt 0:00:04]} 54. Kf3 {[%emt 0:00:03]} Nc4 {[%emt 0:00:04]} 55. Kf2 {[%emt 0:00:02]} Ke4 {[%emt 0:00:07]} 56. Ke2 {[%emt 0:00:02]} Na5 {[%emt 0:00:05]} 57. Kf2 {[%emt 0:00:01]} Nb3 {[%emt 0:00:02]} 58. Ke2 {[%emt 0:00:02]} Nd4+ {[%emt 0:00:02]} 59. Kf2 {[%emt 0:00:02]} Kd3 {[%emt 0:00:06]} 60. a5 {[%emt 0:00:03]} Nb5 {[%emt 0:00:08]} 61. a6 {[%emt 0:00:01]} Ke4 {[%emt 0:00:04]} 62. Ke2 {[%emt 0:00:01]} Kf5 {[%emt 0:00:05]} 63. Kf3 {[%emt 0:00:04]} Nd4+ {[%emt 0:00:05]} 64. Ke3 {[%emt 0:00:01]} Nc6 {[%emt 0:00:01]} 65. Kf3 {[%emt 0:00:02]} Na7 {[%emt 0:00:05]} 66. Ke3 {[%emt 0:00:01]} Kg4 {[%emt 0:00:01]} 67. Kf2 {[%emt 0:00:01]} Nc6 {[%emt 0:00:06]} 68. Kg2 {[%emt 0:00:02]} Kf5 {[%emt 0:00:08]} 69. Kf3 {[%emt 0:00:02]} Nd4+ {[%emt 0:00:04]} 70. Ke3 {[%emt 0:00:01]} Nb5 {[%emt 0:00:01]} 71. Kf3 {[%emt 0:00:02]} Ke6 {[%emt 0:00:11]} 72. Ke4 {[%emt 0:00:01]} Na7 {[%emt 0:00:09]} 73. Kd4 {[%emt 0:00:15]} Kd6 {[%emt 0:00:06]} 74. Ke4 {[%emt 0:00:01]} Nc6 {[%emt 0:00:06]} 75. f5 {[%emt 0:00:02]} Ke7 {[%emt 0:00:06]} 76. fxg6 {[%emt 0:00:01]} Kf6 {[%emt 0:00:01]} 77. Kf4 {[%emt 0:00:03]} Kxg6 {[%emt 0:00:02]} 78. g4 {[%emt 0:00:01]} hxg4 {[%emt 0:00:13]} 79. Kxg4 {[%emt 0:00:02]} Na7 {[%emt 0:00:03]} 80. h5+ {[%emt 0:00:01]} Kh6 {[%emt 0:00:02]} 81. Kf5 {[%emt 0:00:02]} Kxh5 {[%emt 0:00:04]} 82. Ke6 {[%emt 0:00:01]} Kg6 {[%emt 0:00:04]} 83. Kd7 {[%emt 0:00:04]} Kf7 {[%emt 0:00:05]} 84. Kc7 {[%emt 0:00:01]} Nb5+ {[%emt 0:00:05]} 85. Kb6 {[%emt 0:00:03]} Nd6 {[%emt 0:00:02]} 86. Kc6 {[%emt 0:00:08]} Nc8 {[%emt 0:00:03]} 87. Kc7 {[%emt 0:00:06]} Na7 {[%emt 0:00:02]} 88. Kb6 {[%emt 0:00:08]} Nc8+ {[%emt 0:00:03]} 89. Kb7 {[%emt 0:00:01]} Nd6+ {[%emt 0:00:03]} 90. Kc7 {[%emt 0:00:01]} Nb5+ {[%emt 0:00:02]} 91. Kb6 {[%emt 0:00:02]} Nd6 {[%emt 0:00:01]} 1/2-1/2

[Event "3rd FIDE WCCC Rapid G10 2019"]
[Site "Minsk"]
[Date "2019.08.16"]
[Round "2.4"]
[White "Fedorova, Olesya"]
[Black "Ho, Ngoc Vy"]
[Result "1-0"]
[ECO "C25"]
[WhiteElo "1578"]
[BlackElo "1416"]
[Annotator "NA"]
[PlyCount "115"]
[EventDate "2019.08.16"]
[EventType "swiss"]
[EventCountry "BLR"]
[SourceTitle "playchess.com"]
[Source "ChessBase"]
[SourceQuality "1"]
[TimeControl "600+5"]

1. e4 {[%emt 0:00:00]} e5 {[%emt 0:00:00]} 2. Nc3 {[%emt 0:00:03]} Nc6 {[%emt 0:00:00]} 3. f4 {[%emt 0:00:02]} d6 {[%emt 0:00:06]} 4. Nf3 {[%emt 0:00:03]} Nf6 {[%emt 0:00:02]} 5. Bb5 {[%emt 0:00:05]} exf4 {[%emt 0:00:03]} 6. d4 {[%emt 0:00:04]} Bd7 {[%emt 0:00:03]} 7. O-O {[%emt 0:00:05]} Be7 {[%emt 0:00:02]} 8. Bxf4 {[%emt 0:00:04]} O-O {[%emt 0:00:04]} 9. Qd2 {[%emt 0:00:43]} a6 10. Bd3 {[%emt 0:00:22]} Nb4 {[%emt 0:00:26]} 11. Rae1 {[%emt 0:01:19]} Bc6 {[%emt 0:01:05]} 12. d5 {[%emt 0:00:38]} Bd7 {[%emt 0:00:02]} 13. a3 {[%emt 0:00:17]} Nxd3 {[%emt 0:00:04]} 14. cxd3 {[%emt 0:00:02]} c6 {[%emt 0:00:04]} 15. dxc6 {[%emt 0:00:35]} Bxc6 {[%emt 0:00:04]} 16. d4 {[%emt 0:00:14]} d5 {[%emt 0:00:45]} 17. e5 {[%emt 0:00:15]} Ne4 {[%emt 0:00:02]} 18. Qe3 {[%emt 0:00:53]} Re8 {[%emt 0:01:08]} 19. Nxe4 {[%emt 0:01:15]} dxe4 {[%emt 0:00:03]} 20. Nd2 {[%emt 0:00:01]} f5 {[%emt 0:00:07]} 21. Rc1 {[%emt 0:01:16]} Qd5 {[%emt 0:00:12]} 22. Nc4 {[%emt 0:00:21]} Rad8 {[%emt 0:01:26]} 23. Rfd1 {[%emt 0:00:11]} Bb5 {[%emt 0:01:59]} 24. Nb6 {[%emt 0:00:49]} Qe6 {[%emt 0:01:24]} 25. d5 {[%emt 0:00:08]} Qg6 {[%emt 0:00:02]} 26. d6 {[%emt 0:00:26]} Bf8 {[%emt 0:00:02]} 27. Nd5 {[%emt 0:00:16]} Rc8 {[%emt 0:00:27]} 28. Nc7 {[%emt 0:00:35]} Bd7 {[%emt 0:00:37]} 29. Nxe8 {[%emt 0:00:07]} Rxe8 {[%emt 0:00:03]} 30. Qg3 {[%emt 0:00:10]} Qe6 {[%emt 0:00:04]} 31. Rc7 {[%emt 0:00:26]} Rc8 {[%emt 0:00:21]} 32. Rxc8 {[%emt 0:00:03]} Bxc8 {[%emt 0:00:01]} 33. Rc1 {[%emt 0:00:09]} Bd7 {[%emt 0:00:05]} 34. Rc7 {[%emt 0:00:11]} Bb5 {[%emt 0:00:33]} 35. Qc3 {[%emt 0:00:15]} Bc6 {[%emt 0:00:47]} 36. b4 {[%emt 0:00:12]} h6 {[%emt 0:00:02]} 37. a4 {[%emt 0:00:07]} Bxa4 {[%emt 0:00:03]} 38. Qc4 {[%emt 0:00:01]} Qxc4 {[%emt 0:00:04]} 39. Rxc4 {[%emt 0:00:01]} g5 {[%emt 0:00:04]} 40. Bd2 {[%emt 0:00:04]} Kf7 {[%emt 0:00:06]} 41. Kf2 {[%emt 0:00:14]} Ke6 {[%emt 0:00:03]} 42. Bc3 {[%emt 0:00:01]} Bg7 {[%emt 0:00:23]} 43. Rc7 {[%emt 0:00:08]} Bc6 {[%emt 0:00:04]} 44. Rxg7 {[%emt 0:00:04]} b5 {[%emt 0:00:04]} 45. g3 {[%emt 0:00:04]} f4 {[%emt 0:00:04]} 46. gxf4 {[%emt 0:00:01]} gxf4 {[%emt 0:00:01]} 47. Re7+ {[%emt 0:00:07]} Kd5 {[%emt 0:00:08]} 48. d7 {[%emt 0:00:03]} Bxd7 {[%emt 0:00:01]} 49. Rxd7+ {[%emt 0:00:01]} Kc4 {[%emt 0:00:02]} 50. Be1 {[%emt 0:00:04]} e3+ {[%emt 0:00:23]} 51. Kf3 {[%emt 0:00:01]} a5 {[%emt 0:00:04]} 52. bxa5 {[%emt 0:00:03]} b4 {[%emt 0:00:01]} 53. Bxb4 {[%emt 0:00:06]} Kxb4 {[%emt 0:00:01]} 54. a6 {[%emt 0:00:04]} Kc3 {[%emt 0:00:02]} 55. a7 {[%emt 0:00:02]} e2 {[%emt 0:00:01]} 56. Kxe2 {[%emt 0:00:01]} f3+ {[%emt 0:00:01]} 57. Kxf3 {[%emt 0:00:02]} Kc4 {[%emt 0:00:01]} 58. a8=Q {[%emt 0:00:04]} 1-0

[Event "3rd FIDE WCCC Rapid G10 2019"]
[Site "Minsk"]
[Date "2019.08.16"]
[Round "2.5"]
[White "Tsareva, Darya"]
[Black "Nurgaliyeva, Zarina"]
[Result "0-1"]
[ECO "C44"]
[WhiteElo "1177"]
[BlackElo "1474"]
[Annotator "NA"]
[PlyCount "78"]
[EventDate "2019.08.16"]
[EventType "swiss"]
[EventCountry "BLR"]
[SourceTitle "playchess.com"]
[Source "ChessBase"]
[SourceQuality "1"]
[TimeControl "600+5"]

1. e4 {[%emt 0:00:00]} e5 {[%emt 0:00:00]} 2. Nf3 {[%emt 0:00:00]} Nc6 {[%emt 0:00:00]} 3. d4 {[%emt 0:00:01]} exd4 {[%emt 0:00:00]} 4. Nxd4 {[%emt 0:00:02]} Qf6 {[%emt 0:00:01]} 5. Nxc6 {[%emt 0:00:08]} Bc5 {[%emt 0:00:01]} 6. f3 {[%emt 0:00:25]} bxc6 {[%emt 0:00:22]} 7. Nc3 {[%emt 0:00:08]} Ne7 {[%emt 0:00:08]} 8. Bc4 {[%emt 0:00:08]} d5 {[%emt 0:00:03]} 9. exd5 {[%emt 0:00:11]} Qh4+ {[%emt 0:00:02]} 10. g3 {[%emt 0:00:06]} Qxc4 {[%emt 0:00:02]} 11. dxc6 {[%emt 0:00:23]} O-O {[%emt 0:00:03]} 12. Qe2 {[%emt 0:00:19]} Qxe2+ {[%emt 0:00:03]} 13. Kxe2 {[%emt 0:00:02]} Nxc6 {[%emt 0:00:01]} 14. Nb5 {[%emt 0:00:26]} Ba6 {[%emt 0:00:02]} 15. c4 {[%emt 0:00:03]} Bxb5 {[%emt 0:00:03]} 16. cxb5 {[%emt 0:00:02]} Nd4+ {[%emt 0:00:01]} 17. Kd3 {[%emt 0:00:06]} Rad8 {[%emt 0:00:05]} 18. Kc4 {[%emt 0:00:05]} Bb6 {[%emt 0:00:01]} 19. Rf1 {[%emt 0:00:20]} Rd7 {[%emt 0:00:53]} 20. a4 {[%emt 0:00:22]} c6 {[%emt 0:00:38]} 21. a5 {[%emt 0:01:05]} cxb5+ {[%emt 0:00:05]} 22. Kb4 {[%emt 0:00:02]} Nc2+ {[%emt 0:00:02]} 23. Kc3 {[%emt 0:00:04]} Nxa1 {[%emt 0:00:02]} 24. axb6 {[%emt 0:00:02]} axb6 {[%emt 0:00:02]} 25. Bf4 {[%emt 0:00:13]} Rc8+ {[%emt 0:00:12]} 26. Kb4 {[%emt 0:00:05]} Nc2+ {[%emt 0:00:06]} 27. Kxb5 {[%emt 0:00:05]} Rd3 {[%emt 0:00:05]} 28. Be5 {[%emt 0:00:37]} Ne3 {[%emt 0:00:16]} 29. Ra1 {[%emt 0:00:12]} Rb3+ {[%emt 0:00:07]} 30. Ka4 {[%emt 0:00:04]} Ra8+ {[%emt 0:00:04]} 31. Kxb3 {[%emt 0:00:03]} Rxa1 {[%emt 0:00:02]} 32. Bd4 {[%emt 0:00:03]} Nf1 {[%emt 0:00:03]} 33. Bxb6 {[%emt 0:00:04]} Nxh2 {[%emt 0:00:03]} 34. Kc4 {[%emt 0:00:02]} Nf1 {[%emt 0:00:03]} 35. g4 {[%emt 0:00:04]} Nd2+ {[%emt 0:00:02]} 36. Kc3 {[%emt 0:00:04]} Nxf3 {[%emt 0:00:02]} 37. b4 {[%emt 0:00:01]} Ne5 {[%emt 0:00:04]} 38. b5 {[%emt 0:00:03]} Rb1 {[%emt 0:00:04]} 39. Bd4 {[%emt 0:00:05]} Rxb5 {[%emt 0:00:02]} 0-1

[Event "3rd FIDE WCCC Rapid G10 2019"]
[Site "Minsk"]
[Date "2019.08.16"]
[Round "2.6"]
[White "Efimova, Darya"]
[Black "Kayumova, Karina"]
[Result "0-1"]
[ECO "C55"]
[WhiteElo "1385"]
[BlackElo "1085"]
[Annotator "NA"]
[PlyCount "76"]
[EventDate "2019.08.16"]
[EventType "swiss"]
[EventCountry "BLR"]
[SourceTitle "playchess.com"]
[Source "ChessBase"]
[SourceQuality "1"]
[TimeControl "600+5"]

1. e4 {[%emt 0:00:00]} e5 {[%emt 0:00:00]} 2. Nf3 {[%emt 0:00:00]} Nc6 {[%emt 0:00:00]} 3. d4 {[%emt 0:00:00]} exd4 {[%emt 0:00:00]} 4. Bc4 {[%emt 0:00:00]} Nf6 {[%emt 0:00:01]} 5. e5 {[%emt 0:00:00]} d5 {[%emt 0:00:02]} 6. Bb5 {[%emt 0:00:01]} Nd7 {[%emt 0:00:19]} 7. Bxc6 {[%emt 0:00:03]} bxc6 8. Nxd4 {[%emt 0:00:07]} Bc5 {[%emt 0:00:11]} 9. Nf3 {[%emt 0:00:06]} O-O {[%emt 0:00:03]} 10. O-O {[%emt 0:00:02]} Re8 {[%emt 0:00:05]} 11. Re1 {[%emt 0:00:02]} Bb7 {[%emt 0:00:12]} 12. Nc3 {[%emt 0:00:16]} Nb6 {[%emt 0:00:23]} 13. Bg5 {[%emt 0:00:10]} Be7 {[%emt 0:00:03]} 14. Bxe7 {[%emt 0:00:27]} Qxe7 {[%emt 0:00:03]} 15. Nd4 {[%emt 0:00:03]} Qh4 {[%emt 0:00:20]} 16. b3 {[%emt 0:00:40]} Qg5 {[%emt 0:00:32]} 17. Nf3 {[%emt 0:00:18]} Qg6 {[%emt 0:00:18]} 18. Qd2 {[%emt 0:00:25]} c5 {[%emt 0:00:21]} 19. Qf4 {[%emt 0:00:38]} d4 {[%emt 0:00:10]} 20. Ne4 {[%emt 0:00:18]} Nd5 {[%emt 0:00:12]} 21. Qh4 {[%emt 0:00:27]} Nb4 {[%emt 0:00:33]} 22. Rad1 {[%emt 0:01:21]} Nxc2 {[%emt 0:00:21]} 23. Re2 {[%emt 0:00:05]} Rab8 {[%emt 0:00:32]} 24. Rc1 {[%emt 0:01:35]} d3 {[%emt 0:00:11]} 25. Ree1 {[%emt 0:00:47]} Nxe1 26. Rxe1 {[%emt 0:00:01]} Rbd8 {[%emt 0:00:40]} 27. Nfd2 {[%emt 0:00:49]} Rd4 {[%emt 0:00:14]} 28. f3 {[%emt 0:00:26]} Red8 {[%emt 0:00:30]} 29. Nd6 {[%emt 0:00:17]} Rxh4 {[%emt 0:00:37]} 30. Nxb7 {[%emt 0:00:02]} Rf8 {[%emt 0:00:23]} 31. Nxc5 {[%emt 0:00:10]} Qb6 {[%emt 0:00:19]} 32. b4 {[%emt 0:00:22]} Rxb4 {[%emt 0:00:09]} 33. Rc1 {[%emt 0:00:05]} Rb2 {[%emt 0:00:07]} 34. Nde4 {[%emt 0:00:23]} d2 {[%emt 0:00:04]} 35. Rd1 {[%emt 0:00:01]} Rb1 {[%emt 0:00:07]} 36. Rxb1 {[%emt 0:00:24]} Qxb1+ {[%emt 0:00:04]} 37. Kf2 {[%emt 0:00:00]} d1=Q {[%emt 0:00:05]} 38. e6 {[%emt 0:00:17]} Qe1# {[%emt 0:00:13]} 0-1

[Event "3rd FIDE WCCC Rapid G10 2019"]
[Site "Minsk"]
[Date "2019.08.16"]
[Round "3.1"]
[White "Shukhman, Anna"]
[Black "Maklakova, Naomi"]
[Result "1-0"]
[ECO "C11"]
[WhiteElo "1806"]
[BlackElo "1194"]
[Annotator "NA"]
[PlyCount "69"]
[EventDate "2019.08.16"]
[EventType "swiss"]
[EventCountry "BLR"]
[SourceTitle "playchess.com"]
[Source "ChessBase"]
[SourceQuality "1"]
[TimeControl "600+5"]

1. e4 {[%emt 0:00:00]} e6 {[%emt 0:00:00]} 2. Nf3 {[%emt 0:00:00]} d5 {[%emt 0:00:00]} 3. Nc3 {[%emt 0:00:01]} Nf6 {[%emt 0:00:01]} 4. e5 {[%emt 0:00:02]} Nfd7 {[%emt 0:00:02]} 5. d4 {[%emt 0:00:01]} c5 {[%emt 0:00:02]} 6. dxc5 {[%emt 0:00:02]} Bxc5 {[%emt 0:00:02]} 7. Bd3 {[%emt 0:00:03]} f6 {[%emt 0:00:25]} 8. Qe2 {[%emt 0:01:13]} Nc6 {[%emt 0:00:13]} 9. exf6 {[%emt 0:00:02]} Nxf6 {[%emt 0:00:05]} 10. Bg5 {[%emt 0:00:07]} O-O {[%emt 0:00:06]} 11. O-O {[%emt 0:00:03]} Be7 {[%emt 0:00:11]} 12. Nb5 {[%emt 0:00:47]} a6 {[%emt 0:00:11]} 13. Nbd4 {[%emt 0:00:02]} Ne4 {[%emt 0:00:50]} 14. Bxe7 {[%emt 0:00:13]} Nxd4 {[%emt 0:02:39]} 15. Nxd4 {[%emt 0:00:10]} Qxe7 {[%emt 0:00:09]} 16. Bxe4 {[%emt 0:00:05]} dxe4 {[%emt 0:00:13]} 17. Qxe4 {[%emt 0:00:04]} Qb4 {[%emt 0:01:47]} 18. Qe3 {[%emt 0:00:39]} Qxb2 {[%emt 0:00:19]} 19. Rfb1 {[%emt 0:00:07]} Qxa1 {[%emt 0:00:44]} 20. Rxa1 {[%emt 0:00:01]} Bd7 {[%emt 0:00:24]} 21. Rb1 {[%emt 0:00:16]} b5 {[%emt 0:00:25]} 22. Rd1 {[%emt 0:00:03]} Rad8 {[%emt 0:00:55]} 23. Nxe6 {[%emt 0:00:12]} Bxe6 {[%emt 0:00:29]} 24. Qxe6+ {[%emt 0:00:03]} Kh8 {[%emt 0:00:06]} 25. Rxd8 {[%emt 0:00:03]} Rxd8 {[%emt 0:00:02]} 26. g3 {[%emt 0:00:02]} a5 {[%emt 0:00:42]} 27. Qb6 {[%emt 0:00:09]} Rc8 {[%emt 0:00:02]} 28. Qxb5 {[%emt 0:00:07]} h6 {[%emt 0:00:08]} 29. c4 {[%emt 0:00:03]} a4 {[%emt 0:00:42]} 30. Qxa4 {[%emt 0:00:06]} Rd8 {[%emt 0:00:03]} 31. c5 {[%emt 0:00:03]} Rc8 {[%emt 0:00:02]} 32. c6 {[%emt 0:00:02]} Rc7 {[%emt 0:00:09]} 33. Qa8+ {[%emt 0:00:03]} Kh7 {[%emt 0:00:01]} 34. Qb7 {[%emt 0:00:02]} Rxb7 {[%emt 0:00:06]} 35. cxb7 1-0